{"text_format":"3","workbook":"xlsx","n_sheets":1,"sheets":["Nota spese"],"not_rendered":{"images":2,"defined_names":12},"read":"whole","date_system":"1900"}

{"sheet":"Nota spese","index":0,"n_rows":24,"n_cols":13,"rows_kept":24,"merged":[[3,2,3,3],[3,5,3,6],[3,9,3,10],[4,2,4,3],[4,5,4,6],[4,9,4,10],[5,2,5,3],[5,5,5,6],[5,9,5,10],[6,2,6,3],[6,5,6,6],[6,9,6,10],[7,9,7,10]]}
[null,"NOTA SPESE"]
[null,"CONTOSO, LTD"]
[null,"Via Martedì 123, 20100 Milano"]
[null,"TELEFONO",4255550121,null,"NOME","Palmira Loggia",null,null,"SCOPO","Seminario annuale sulle vendite",null,"INDENNITÀ TRASFERTA",{"v":0.5,"d":"0.50€/km"}]
[null,"FAX",4255550122,null,"REPARTO","Commerciale",null,null,"INIZIO",{"$f":"IFERROR(MIN(Spese[DATA]),\"\")","v":"2018-06-04"},null,"RIMBORSO PASTI",{"v":30,"d":"30.00€/giorno"}]
[null,"POSTA ELETTRONICA","info@contoso.com",null,"POSIZIONE","Direttore generale",null,null,"FINE",{"$f":"IFERROR(MAX(Spese[DATA]),\"\")","v":"2018-07-04"},null,"RIMBORSO ALLOGGIO",{"v":200,"d":"200.00€/notte"}]
[null,"WEB","www.contoso.com",null,"MANAGER","Diego Sagese",null,null,"PREPARATO DA","Palmira Loggia",null,"RIMBORSO TELEFONO",{"v":10,"d":"10.00€/giorno"}]
[{"$nulls":8},"APPROVATO DA","Diego Sagese",null,"RIMBORSO SPESE VARIE",{"v":50,"d":"50.00€/giorno"}]
[]
[null,"DATA","CONTO","DESCRIZIONE","HOTEL","TRASPORTI","PASTI","TELEFONO","VARIE","CONTACHILOMETRI \nVALORE INIZIALE","CONTACHILOMETRI \nVALORE FINALE","INDENNITÀ TRASFERTA \nTOTALE","TOTALE "]
[null,{"$f":"TODAY()","v":"2018-06-04"},"Commerciale","Indennità di trasferta chilometrica",{"$nulls":4},{"v":50,"d":"50.00 €"},{"v":11378.5,"d":"11,378.5 km"},{"v":11456.2,"d":"11,456.2 km"},{"$f":"IF(COUNTA(Spese[[#This Row],[CONTACHILOMETRI \nVALORE INIZIALE]:[CONTACHILOMETRI \nVALORE FINALE]])=2,(Spese[[#This Row],[CONTACHILOMETRI \nVALORE FINALE]]-Spese[[#This Row],[CONTACHILOMETRI \nVALORE INIZIALE]])*IndennitàChilometrica,\"\")","v":{"v":38.850000000000364,"d":"38.85 €"}},{"$f":"IF(COUNTA(Spese[[#This Row],[DATA]:[CONTACHILOMETRI \nVALORE FINALE]])=0,\"\",SUM(Spese[[#This Row],[HOTEL]:[TRASPORTI]],Spese[[#This Row],[PASTI]:[VARIE]],((Spese[[#This Row],[CONTACHILOMETRI \nVALORE FINALE]]-Spese[[#This Row],[CONTACHILOMETRI \nVALORE INIZIALE]])*(IndennitàChilometrica))))","v":{"v":88.85000000000036,"d":"88.85 €"}}]
[null,{"$f":"TODAY()+30","v":"2018-07-04"},"Commerciale","Convegno",{"v":445,"d":"445.00 €"},{"v":225,"d":"225.00 €"},{"v":20,"d":"20.00 €"},null,{"v":5,"d":"5.00 €"},{"v":11500,"d":"11,500.0 km"},{"v":11560,"d":"11,560.0 km"},{"$f":"IF(COUNTA(Spese[[#This Row],[CONTACHILOMETRI \nVALORE INIZIALE]:[CONTACHILOMETRI \nVALORE FINALE]])=2,(Spese[[#This Row],[CONTACHILOMETRI \nVALORE FINALE]]-Spese[[#This Row],[CONTACHILOMETRI \nVALORE INIZIALE]])*IndennitàChilometrica,\"\")","v":{"v":30,"d":"30.00 €"}},{"$f":"IF(COUNTA(Spese[[#This Row],[DATA]:[CONTACHILOMETRI \nVALORE FINALE]])=0,\"\",SUM(Spese[[#This Row],[HOTEL]:[TRASPORTI]],Spese[[#This Row],[PASTI]:[VARIE]],((Spese[[#This Row],[CONTACHILOMETRI \nVALORE FINALE]]-Spese[[#This Row],[CONTACHILOMETRI \nVALORE INIZIALE]])*(IndennitàChilometrica))))","v":{"v":725,"d":"725.00 €"}}]
[{"$nulls":11},{"$f":"IF(COUNTA(Spese[[#This Row],[CONTACHILOMETRI \nVALORE INIZIALE]:[CONTACHILOMETRI \nVALORE FINALE]])=2,(Spese[[#This Row],[CONTACHILOMETRI \nVALORE FINALE]]-Spese[[#This Row],[CONTACHILOMETRI \nVALORE INIZIALE]])*IndennitàChilometrica,\"\")","v":""},{"$f":"IF(COUNTA(Spese[[#This Row],[DATA]:[CONTACHILOMETRI \nVALORE FINALE]])=0,\"\",SUM(Spese[[#This Row],[HOTEL]:[TRASPORTI]],Spese[[#This Row],[PASTI]:[VARIE]],((Spese[[#This Row],[CONTACHILOMETRI \nVALORE FINALE]]-Spese[[#This Row],[CONTACHILOMETRI \nVALORE INIZIALE]])*(IndennitàChilometrica))))","v":""}]
[{"$nulls":11},{"$f":"IF(COUNTA(Spese[[#This Row],[CONTACHILOMETRI \nVALORE INIZIALE]:[CONTACHILOMETRI \nVALORE FINALE]])=2,(Spese[[#This Row],[CONTACHILOMETRI \nVALORE FINALE]]-Spese[[#This Row],[CONTACHILOMETRI \nVALORE INIZIALE]])*IndennitàChilometrica,\"\")","v":""},{"$f":"IF(COUNTA(Spese[[#This Row],[DATA]:[CONTACHILOMETRI \nVALORE FINALE]])=0,\"\",SUM(Spese[[#This Row],[HOTEL]:[TRASPORTI]],Spese[[#This Row],[PASTI]:[VARIE]],((Spese[[#This Row],[CONTACHILOMETRI \nVALORE FINALE]]-Spese[[#This Row],[CONTACHILOMETRI \nVALORE INIZIALE]])*(IndennitàChilometrica))))","v":""}]
[{"$nulls":11},{"$f":"IF(COUNTA(Spese[[#This Row],[CONTACHILOMETRI \nVALORE INIZIALE]:[CONTACHILOMETRI \nVALORE FINALE]])=2,(Spese[[#This Row],[CONTACHILOMETRI \nVALORE FINALE]]-Spese[[#This Row],[CONTACHILOMETRI \nVALORE INIZIALE]])*IndennitàChilometrica,\"\")","v":""},{"$f":"IF(COUNTA(Spese[[#This Row],[DATA]:[CONTACHILOMETRI \nVALORE FINALE]])=0,\"\",SUM(Spese[[#This Row],[HOTEL]:[TRASPORTI]],Spese[[#This Row],[PASTI]:[VARIE]],((Spese[[#This Row],[CONTACHILOMETRI \nVALORE FINALE]]-Spese[[#This Row],[CONTACHILOMETRI \nVALORE INIZIALE]])*(IndennitàChilometrica))))","v":""}]
[{"$nulls":11},{"$f":"IF(COUNTA(Spese[[#This Row],[CONTACHILOMETRI \nVALORE INIZIALE]:[CONTACHILOMETRI \nVALORE FINALE]])=2,(Spese[[#This Row],[CONTACHILOMETRI \nVALORE FINALE]]-Spese[[#This Row],[CONTACHILOMETRI \nVALORE INIZIALE]])*IndennitàChilometrica,\"\")","v":""},{"$f":"IF(COUNTA(Spese[[#This Row],[DATA]:[CONTACHILOMETRI \nVALORE FINALE]])=0,\"\",SUM(Spese[[#This Row],[HOTEL]:[TRASPORTI]],Spese[[#This Row],[PASTI]:[VARIE]],((Spese[[#This Row],[CONTACHILOMETRI \nVALORE FINALE]]-Spese[[#This Row],[CONTACHILOMETRI \nVALORE INIZIALE]])*(IndennitàChilometrica))))","v":""}]
[{"$nulls":11},{"$f":"IF(COUNTA(Spese[[#This Row],[CONTACHILOMETRI \nVALORE INIZIALE]:[CONTACHILOMETRI \nVALORE FINALE]])=2,(Spese[[#This Row],[CONTACHILOMETRI \nVALORE FINALE]]-Spese[[#This Row],[CONTACHILOMETRI \nVALORE INIZIALE]])*IndennitàChilometrica,\"\")","v":""},{"$f":"IF(COUNTA(Spese[[#This Row],[DATA]:[CONTACHILOMETRI \nVALORE FINALE]])=0,\"\",SUM(Spese[[#This Row],[HOTEL]:[TRASPORTI]],Spese[[#This Row],[PASTI]:[VARIE]],((Spese[[#This Row],[CONTACHILOMETRI \nVALORE FINALE]]-Spese[[#This Row],[CONTACHILOMETRI \nVALORE INIZIALE]])*(IndennitàChilometrica))))","v":""}]
[{"$nulls":11},{"$f":"IF(COUNTA(Spese[[#This Row],[CONTACHILOMETRI \nVALORE INIZIALE]:[CONTACHILOMETRI \nVALORE FINALE]])=2,(Spese[[#This Row],[CONTACHILOMETRI \nVALORE FINALE]]-Spese[[#This Row],[CONTACHILOMETRI \nVALORE INIZIALE]])*IndennitàChilometrica,\"\")","v":""},{"$f":"IF(COUNTA(Spese[[#This Row],[DATA]:[CONTACHILOMETRI \nVALORE FINALE]])=0,\"\",SUM(Spese[[#This Row],[HOTEL]:[TRASPORTI]],Spese[[#This Row],[PASTI]:[VARIE]],((Spese[[#This Row],[CONTACHILOMETRI \nVALORE FINALE]]-Spese[[#This Row],[CONTACHILOMETRI \nVALORE INIZIALE]])*(IndennitàChilometrica))))","v":""}]
[{"$nulls":11},{"$f":"IF(COUNTA(Spese[[#This Row],[CONTACHILOMETRI \nVALORE INIZIALE]:[CONTACHILOMETRI \nVALORE FINALE]])=2,(Spese[[#This Row],[CONTACHILOMETRI \nVALORE FINALE]]-Spese[[#This Row],[CONTACHILOMETRI \nVALORE INIZIALE]])*IndennitàChilometrica,\"\")","v":""},{"$f":"IF(COUNTA(Spese[[#This Row],[DATA]:[CONTACHILOMETRI \nVALORE FINALE]])=0,\"\",SUM(Spese[[#This Row],[HOTEL]:[TRASPORTI]],Spese[[#This Row],[PASTI]:[VARIE]],((Spese[[#This Row],[CONTACHILOMETRI \nVALORE FINALE]]-Spese[[#This Row],[CONTACHILOMETRI \nVALORE INIZIALE]])*(IndennitàChilometrica))))","v":""}]
[{"$nulls":11},{"$f":"IF(COUNTA(Spese[[#This Row],[CONTACHILOMETRI \nVALORE INIZIALE]:[CONTACHILOMETRI \nVALORE FINALE]])=2,(Spese[[#This Row],[CONTACHILOMETRI \nVALORE FINALE]]-Spese[[#This Row],[CONTACHILOMETRI \nVALORE INIZIALE]])*IndennitàChilometrica,\"\")","v":""},{"$f":"IF(COUNTA(Spese[[#This Row],[DATA]:[CONTACHILOMETRI \nVALORE FINALE]])=0,\"\",SUM(Spese[[#This Row],[HOTEL]:[TRASPORTI]],Spese[[#This Row],[PASTI]:[VARIE]],((Spese[[#This Row],[CONTACHILOMETRI \nVALORE FINALE]]-Spese[[#This Row],[CONTACHILOMETRI \nVALORE INIZIALE]])*(IndennitàChilometrica))))","v":""}]
[{"$nulls":11},{"$f":"IF(COUNTA(Spese[[#This Row],[CONTACHILOMETRI \nVALORE INIZIALE]:[CONTACHILOMETRI \nVALORE FINALE]])=2,(Spese[[#This Row],[CONTACHILOMETRI \nVALORE FINALE]]-Spese[[#This Row],[CONTACHILOMETRI \nVALORE INIZIALE]])*IndennitàChilometrica,\"\")","v":""},{"$f":"IF(COUNTA(Spese[[#This Row],[DATA]:[CONTACHILOMETRI \nVALORE FINALE]])=0,\"\",SUM(Spese[[#This Row],[HOTEL]:[TRASPORTI]],Spese[[#This Row],[PASTI]:[VARIE]],((Spese[[#This Row],[CONTACHILOMETRI \nVALORE FINALE]]-Spese[[#This Row],[CONTACHILOMETRI \nVALORE INIZIALE]])*(IndennitàChilometrica))))","v":""}]
[null,"TOTALI",null,null,{"$f":"SUBTOTAL(109,Spese[HOTEL])","v":{"v":445,"d":"445.00 €"}},{"$f":"SUBTOTAL(109,Spese[TRASPORTI])","v":{"v":225,"d":"225.00 €"}},{"$f":"SUBTOTAL(109,Spese[PASTI])","v":{"v":20,"d":"20.00 €"}},{"$f":"SUBTOTAL(109,Spese[TELEFONO])","v":0},{"$f":"SUBTOTAL(109,Spese[VARIE])","v":{"v":55,"d":"55.00 €"}},{"$nulls":3},{"$f":"SUBTOTAL(109,Spese[[TOTALE ]])","v":{"v":813.8500000000004,"d":"813.85 €"}}]
[{"$nulls":11},"ANTICIPO",{"v":0,"d":"0.00 €"}]
[{"$nulls":11},"TOTALE",{"$f":"Spese[[#Totals],[TOTALE ]]-Anticipo","v":{"v":813.8500000000004,"d":"813.85 €"}}]